bitfinex/quotes_ETHUSD_20250424
["timestamp","ask_amount","ask_price","bid_price","bid_amount"]
[1745507250424,0.8008,1770.9,1770.6,6.16396761]
[1745507250590,0.8008,1770.9,1770.6,0.5163482]
[1745507250790,0.8008,1770.9,1770.6,0.48579207]
[1745507251124,0.8008,1770.9,1770.6,6.13355643]
[1745507251329,0.8008,1770.9,1770.6,6.13344007]
[1745507251884,0.8008,1770.9,1770.7,0.51664071]
[1745507252536,0.8008,1770.9,1770.6,6.13359159]
[1745507252720,0.8008,1770.9,1770.7,0.61335916]
[1745507253018,0.8008,1770.9,1770.6,0.48579207]
[1745507253618,0.8008,1770.9,1770.7,0.0564677]
[1745507255113,0.8008,1770.9,1770.6,6.18987291]
[1745507255314,0.8008,1770.9,1770.6,11.83750528]
[1745507255544,0.8008,1770.9,1770.6,6.13340525]
[1745507255743,0.8008,1770.9,1770.7,1.13040865]
[1745507255979,6.0857,1771.8,1771.2,5.64558599]
[1745507256253,6.0857,1771.8,1771.3,0.05644466]
[1745507256554,0.7737,1771.8,1771.4,5.64501113]
[1745507256849,0.7737,1771.8,1771.4,6.99525671]
[1745507257048,6.0672,1772.0,1771.6,5.64457633]
[1745507257259,6.0672,1772.0,1771.5,6.16105549]
[1745507257448,6.0672,1772.0,1771.5,5.64476272]
[1745507258055,6.0672,1772.0,1771.4,7.42254187]
[1745507258251,6.0672,1772.0,1771.5,0.74225419]
[1745507258459,6.0672,1772.0,1771.5,1.25844189]
[1745507258655,6.0672,1772.0,1771.5,12.54816547]
[1745507258865,6.0672,1772.0,1771.5,6.90327709]
[1745507259030,0.7688,1772.3,1771.7,5.64406098]
[1745507259365,0.7688,1772.3,1771.8,0.62083756]
[1745507259570,0.7688,1772.3,1771.8,0.5644061]
[1745507259771,0.7688,1772.3,1771.7,0.05643146]
[1745507259971,0.7688,1772.3,1771.7,0.05643009]
[1745507260278,0.7688,1772.3,1771.8,0.7753]
[1745507260463,0.7688,1772.3,1771.8,6.41918792]
[1745507260932,0.7688,1772.3,1771.9,0.05642287]
[1745507261264,0.7688,1772.3,1771.9,0.64755396]
[1745507261741,0.7688,1772.3,1771.7,0.15963861]
[1745507262063,0.7688,1772.3,1771.7,5.80393007]
[1745507262271,0.7688,1772.3,1771.7,5.80385118]
[1745507262770,0.7688,1772.3,1771.7,5.80374895]
[1745507263369,6.41123755,1772.3,1771.7,0.10320999]
[1745507263532,6.41123755,1772.3,1771.7,1.05550454]
[1745507263733,6.41123755,1772.3,1771.7,0.10320999]
[1745507264044,0.7688,1772.3,1771.7,5.80381397]
[1745507264354,6.41128906,1772.3,1771.7,0.10320999]
[1745507264549,0.7688,1772.2,1771.7,0.10320999]
[1745507264741,0.7688,1772.2,1771.7,0.15964471]
[1745507264945,0.7688,1772.2,1771.7,0.68363043]
[1745507265346,0.7688,1772.2,1771.7,6.32779715]
[1745507265668,0.7688,1772.2,1771.7,6.38422806]
[1745507265850,0.7688,1772.2,1771.8,5.64394926]
[1745507266056,0.7688,1772.2,1771.8,6.41314926]
[1745507266269,0.7688,1772.2,1771.9,0.64131493]
[1745507266446,0.7688,1772.2,1772.0,0.05642634]
[1745507266778,1.1592086,1772.4,1772.0,0.05642634]
[1745507266934,1.1592086,1772.4,1771.9,0.41325122]
[1745507267133,1.1592086,1772.4,1771.8,6.41302174]
[1745507267726,1.1592086,1772.4,1771.9,5.64340176]
[1745507267942,1.1592086,1772.4,1772.0,0.56434018]
[1745507268129,1.1592086,1772.4,1771.9,0.55]
[1745507268345,1.1592086,1772.4,1771.9,6.19347112]
[1745507268632,1.1592086,1772.4,1771.9,0.55]
[1745507268968,1.1592086,1772.4,1771.8,6.41293812]
[1745507269267,1.1592086,1772.4,1771.9,5.64360685]
[1745507269439,1.1592086,1772.4,1772.0,0.56436069]
[1745507269763,1.1592086,1772.4,1771.8,6.46940206]
[1745507269764,1.1592086,1772.4,1771.8,6.41297779]
[1745507270067,0.807,1772.1,1771.7,0.68363043]
[1745507270255,0.807,1772.1,1771.7,0.10320999]
[1745507270779,0.807,1772.1,1771.7,5.74749286]
[1745507271258,0.807,1772.1,1771.8,0.05643435]
[1745507271439,0.807,1772.1,1771.7,0.1596436]
[1745507271768,0.807,1772.1,1771.7,0.10320999]
[1745507271973,6.45014076,1772.1,1771.7,0.10320999]
[1745507272133,0.807,1771.9,1771.7,0.10320999]
[1745507272589,0.807,1771.9,1771.4,5.64503299]
[1745507272930,0.807,1771.9,1771.3,10.95438648]
[1745507273449,0.807,1771.9,1771.4,11.29003403]
[1745507273778,0.807,1771.9,1771.3,5.309]
[1745507273934,5.64399265,1771.8,1771.3,5.309]
[1745507274286,0.807,1771.7,1771.0,9.42388226]
[1745507274782,6.116,1771.7,1771.1,5.64604698]
[1745507274946,6.116,1771.7,1771.2,0.05644919]
[1745507275351,6.116,1771.7,1771.0,9.48020233]
[1745507275551,11.76038016,1771.7,1771.1,0.94802023]
[1745507275740,0.8071,1771.5,1770.9,5.309]
[1745507275940,0.8071,1771.5,1770.9,5.36545687]
[1745507276290,0.8071,1771.5,1770.9,11.01210496]
[1745507276441,0.8071,1771.5,1770.9,16.65875145]
[1745507276639,0.8071,1771.5,1771.0,1.66587515]
[1745507276975,0.8071,1771.5,1771.1,0.0564568]
[1745507277273,0.8071,1771.5,1771.0,7.31212619]
[1745507277477,0.8071,1771.5,1771.0,7.31224832]
[1745507277638,0.8071,1771.5,1771.0,7.36870043]
[1745507277838,0.8071,1771.5,1771.1,6.3830666]
[1745507278038,0.8071,1771.5,1771.1,6.3828899]
[1745507278271,0.8071,1771.5,1771.2,0.05645058]
[1745507278684,0.8071,1771.5,1771.1,6.3829546]
[1745507279044,0.8071,1771.5,1771.2,0.05645141]
[1745507279239,0.8071,1771.5,1771.2,6.34616251]
[1745507279474,0.8071,1771.5,1771.2,6.3460706]
[1745507279675,0.763,1771.7,1771.2,1.12896526]
[1745507279975,0.763,1771.7,1771.4,5.64502314]
[1745507280192,0.763,1771.7,1771.3,6.16213704]
[1745507280501,0.763,1771.7,1771.4,0.6162137]
[1745507280771,0.763,1771.7,1771.3,5.64535834]
[1745507280938,0.763,1771.7,1771.4,5.70154987]
[1745507281140,0.763,1771.7,1771.4,5.7015207]
[1745507281340,0.763,1771.7,1771.2,0.64393638]
[1745507281844,0.763,1771.7,1771.3,0.51724052]
[1745507282065,0.7867,1771.6,1771.3,0.51724052]
[1745507282996,0.7867,1771.6,1771.3,5.64545857]
[1745507283197,0.7867,1771.6,1771.3,5.64553405]
[1745507283528,0.7867,1771.6,1771.3,5.64539077]
[1745507283685,0.7867,1771.6,1771.4,0.51715273]
[1745507284005,0.7867,1771.6,1771.4,1.13340708]
[1745507284208,0.7867,1771.6,1771.2,5.64574638]
[1745507284505,0.7867,1771.6,1771.1,5.6459816]
[1745507284710,0.7867,1771.6,1771.3,0.51751117]
[1745507285398,0.7867,1771.6,1771.1,5.6459816]
[1745507285607,0.7867,1771.6,1771.2,0.56459816]
[1745507286210,0.7867,1771.6,1771.0,5.64630013]
[1745507286504,0.7867,1771.6,1771.1,0.51792932]
[1745507286873,0.7867,1771.6,1771.2,0.51792932]
[1745507287486,0.7867,1771.6,1771.0,6.16422982]
[1745507287688,0.7867,1771.6,1771.1,0.61642298]
[1745507287886,0.7867,1771.6,1771.2,0.51792932]
[1745507288382,0.7867,1771.6,1771.3,0.51792932]
[1745507288975,0.7867,1771.6,1771.1,0.61642298]
[1745507289305,0.7867,1771.6,1771.0,5.64649949]
[1745507289485,0.7867,1771.6,1771.1,6.16392948]
[1745507290169,0.7867,1771.6,1771.2,0.5177504]
[1745507290790,0.7867,1771.6,1771.1,5.64620733]
[1745507291509,0.7867,1771.6,1771.2,0.51763277]
[1745507291716,0.7867,1771.6,1771.2,1.13401678]
[1745507291915,0.7867,1771.6,1771.2,6.77986372]
[1745507292272,0.7867,1771.6,1771.3,0.51763277]
[1745507293003,0.7867,1771.6,1771.2,0.61638401]
[1745507294137,0.7867,1771.6,1771.2,6.26225758]
[1745507294436,0.7867,1771.6,1771.3,1.14375029]
[1745507294637,0.7867,1771.6,1771.3,0.51752453]
[1745507294937,0.7867,1771.6,1771.2,6.26221543]
[1745507295104,0.7867,1771.6,1771.2,0.61638401]
[1745507295638,0.7867,1771.6,1771.2,6.26226664]
[1745507296021,0.7867,1771.6,1771.3,0.51762449]
[1745507296227,0.7867,1771.6,1771.2,0.61638401]
[1745507297121,0.7867,1771.6,1771.3,0.5176643]
[1745507298339,0.7867,1771.6,1771.2,0.61638401]
[1745507298340,0.7867,1771.6,1771.4,0.5176643]
[1745507298635,0.7867,1771.6,1771.3,0.5176643]
[1745507298801,0.7867,1771.6,1771.4,0.5176643]
[1745507299642,0.7867,1771.6,1771.0,11.29271373]
[1745507300138,0.7867,1771.6,1771.1,5.64619322]
[1745507300442,0.7867,1771.6,1771.2,1.08354428]
[1745507300624,0.7867,1771.6,1771.2,0.51892496]
[1745507300939,0.7867,1771.6,1771.3,0.51892496]
[1745507301245,0.7867,1771.6,1771.4,0.51892496]
[1745507301644,0.7867,1771.6,1771.5,0.51892496]
[1745507301814,0.796,1772.1,1771.6,5.64445854]
[1745507302022,0.796,1772.1,1771.7,0.56444585]
[1745507302341,0.796,1772.1,1771.8,0.51892496]
[1745507303140,0.796,1772.1,1771.6,5.64459497]
[1745507303306,0.796,1772.1,1771.7,0.51932359]
[1745507303708,0.796,1772.1,1771.8,0.51932359]
[1745507304216,0.796,1772.1,1771.9,0.51932359]
[1745507304741,0.796,1772.1,1772.0,0.51932359]
[1745507305251,7.24941214,1772.1,1772.0,0.51932359]
[1745507305419,8.53862853,1772.1,1772.0,0.51932359]
[1745507305615,5.64360911,1772.0,1771.3,5.308]
[1745507305943,0.7672,1771.8,1771.3,5.308]
[1745507306118,0.7672,1771.8,1771.4,0.519696]
[1745507307055,0.7672,1771.8,1771.5,0.519696]
[1745507307423,0.7672,1771.8,1771.6,0.519696]
[1745507308235,0.7672,1771.8,1771.7,0.519696]
[1745507312800,8.64283373,1772.2,1771.7,0.519696]
[1745507312801,0.79,1772.2,1771.7,0.519696]
[1745507313093,6.095,1772.2,1771.7,1.13609581]
[1745507313253,6.095,1772.2,1771.7,0.519696]
[1745507313453,6.095,1772.2,1771.8,0.519696]
[1745507314049,11.73776116,1772.2,1771.8,0.519696]
[1745507314270,6.095,1772.2,1771.9,0.519696]
[1745507314955,7.22541214,1772.1,1772.0,0.519696]
[1745507315156,3.39971453,1772.1,1772.0,0.519696]
[1745507315473,9.04273693,1772.1,1772.0,0.519696]
[1745507315792,3.39971453,1772.1,1771.4,5.70166816]
[1745507316084,1.58238974,1772.1,1771.4,5.70148471]
[1745507316310,1.58238974,1772.1,1771.5,0.51990924]
[1745507317011,7.22550391,1772.1,1771.6,0.51990924]
[1745507317510,7.22550391,1772.1,1771.7,0.51990924]
[1745507317709,8.26343788,1772.1,1771.7,0.51990924]
[1745507317874,6.41486395,1772.0,1771.7,0.51990924]
[1745507318074,5.64336395,1772.0,1771.7,0.51990924]
[1745507318274,1.60998974,1771.9,1771.3,5.308]
[1745507318609,1.60998974,1771.7,1771.3,5.308]
[1745507318814,1.60998974,1771.7,1771.4,0.52033846]
[1745507319202,1.60998974,1771.7,1771.5,0.52033846]
[1745507319374,0.807,1771.7,1771.5,0.52033846]
[1745507319575,0.807,1771.7,1771.1,0.8102]
[1745507319913,7.25438134,1771.7,1771.1,0.8102]
[1745507320093,1.60998974,1771.7,1771.1,0.8102]
[1745507320286,0.82379311,1772.4,1771.7,5.64405587]
[1745507320485,0.804,1772.3,1771.8,0.85814819]
[1745507320690,0.804,1772.3,1771.6,6.46136598]
[1745507320913,0.804,1772.3,1771.6,0.8169]
[1745507321076,0.804,1772.1,1771.7,0.52052998]
[1745507321610,0.804,1772.1,1771.8,0.52052998]
[1745507322122,0.804,1772.1,1771.9,0.52052998]
[1745507322731,0.804,1772.1,1772.0,0.52052998]
[1745507324910,1.60698974,1772.1,1772.0,0.52052998]
[1745507325322,1.60698974,1772.1,1771.4,6.87929611]
[1745507325501,1.60698974,1772.1,1771.5,5.64476357]
[1745507325702,0.7964,1772.0,1771.5,1.25240597]
[1745507325901,0.7964,1772.0,1771.4,5.64506871]
[1745507326230,0.7933,1771.8,1771.5,0.51976588]
[1745507326595,0.80298974,1771.7,1771.6,0.51976588]
[1745507326842,0.7933,1771.8,1771.6,0.51976588]
[1745507327357,0.7933,1771.8,1771.3,11.3472217]
[1745507327552,0.7933,1771.8,1771.4,7.29940186]
[1745507327949,0.7933,1771.8,1771.5,5.64490475]
[1745507328130,5.304,1771.9,1771.5,11.34592081]
[1745507328331,0.8248,1772.0,1771.6,6.22050689]
[1745507328691,8.305,1772.2,1771.8,11.28771585]
[1745507328692,5.305,1772.2,1771.8,11.28771585]
[1745507328960,0.4017086,1772.4,1771.9,7.34818992]
[1745507329126,0.4017086,1772.4,1771.9,7.34818143]
[1745507329328,0.4017086,1772.4,1772.0,6.41778787]
[1745507329531,0.4017086,1772.4,1772.1,5.64282352]
[1745507329745,0.4017086,1772.4,1772.0,6.93724124]
[1745507329958,0.4017086,1772.4,1772.2,5.64256466]
[1745507330120,0.4017086,1772.4,1772.3,0.51957587]
[1745507334083,0.4017086,1772.4,1772.3,6.16196147]
[1745507334303,0.4017086,1772.4,1772.3,0.51957587]
[1745507334468,0.4017086,1772.4,1772.3,1.13578626]
[1745507334654,0.4017086,1772.4,1772.3,1.90648626]
[1745507334849,0.4017086,1772.4,1772.3,7.54887186]
[1745507335382,0.4017086,1772.4,1772.3,1.90648626]
[1745507335564,0.4017086,1772.4,1772.3,7.54887186]
[1745507336463,0.4017086,1772.4,1772.3,7.60528324]
[1745507336867,0.4017086,1772.4,1772.3,8.15528324]
[1745507337287,0.4017086,1772.4,1772.3,8.09887186]
[1745507337878,0.4017086,1772.4,1772.3,7.54887186]
[1745507338696,0.4017086,1772.4,1772.3,7.60528147]
[1745507338925,0.4017086,1772.4,1772.3,11.15528147]
[1745507339229,0.4017086,1772.4,1772.3,11.09887186]
[1745507339528,0.4017086,1772.4,1772.3,10.54887186]
[1745507339897,0.4017086,1772.4,1772.3,10.60528104]
[1745507340226,0.4017086,1772.4,1772.3,11.10528104]
[1745507340588,0.4017086,1772.4,1772.3,11.75845609]
[1745507340792,0.4017086,1772.4,1772.3,11.70204691]
[1745507344043,0.4017086,1772.4,1772.3,2.50966131]
[1745507344249,0.4017086,1772.4,1772.3,8.20845968]
[1745507344611,0.4017086,1772.4,1772.3,8.15204691]
[1745507345017,0.4017086,1772.4,1772.3,9.56144648]
[1745507345219,0.4017086,1772.4,1772.3,12.56144648]
[1745507345530,5.299,1773.1,1772.6,0.808]
[1745507345731,0.7536,1773.2,1772.7,11.80151343]
[1745507345931,0.7536,1773.2,1772.8,1.18015134]
[1745507346133,0.7536,1773.2,1772.7,6.16049364]
[1745507346328,0.7536,1773.2,1772.7,5.64091482]
[1745507346619,0.7536,1773.2,1772.6,0.86440035]
[1745507346818,0.7536,1773.2,1772.8,6.15598057]
[1745507347040,0.7536,1773.2,1772.8,0.51530481]
[1745507347247,0.7536,1773.2,1772.7,5.64102955]
[1745507347434,0.7536,1773.2,1772.8,6.20477737]
[1745507347630,0.7536,1773.2,1772.8,0.56410295]
[1745507348423,0.7536,1773.2,1773.1,5.63983982]
[1745507348641,5.299,1773.5,1773.1,5.63969212]
[1745507348642,0.7711,1773.4,1773.1,5.63969212]
[1745507348859,0.7711,1773.4,1773.1,5.63964768]
[1745507349066,0.7711,1773.4,1773.1,6.76760969]
[1745507349234,0.7711,1773.4,1773.1,1.12796201]
[1745507349722,0.7711,1773.4,1772.9,6.40024799]
[1745507349923,0.7711,1773.4,1773.0,0.51525533]
[1745507350159,0.8249,1773.3,1773.0,0.51525533]
[1745507350563,0.8249,1773.3,1772.8,0.80298974]
[1745507350821,0.8249,1773.3,1772.9,5.64032551]
[1745507351026,0.8249,1773.3,1773.0,6.20412613]
[1745507351264,0.8249,1773.3,1773.0,0.56403255]
[1745507351470,6.1239,1773.5,1773.1,5.63978839]
[1745507351667,6.1239,1773.5,1773.2,5.63935367]
[1745507351850,6.1239,1773.5,1773.1,5.63970539]
[1745507352051,0.8249,1773.5,1773.2,0.56397054]
[1745507352427,0.8249,1773.5,1773.2,6.20348645]
[1745507352669,0.80298974,1773.8,1773.4,5.63888575]
[1745507352670,0.7699,1773.8,1773.4,5.63888575]
[1745507352828,0.7699,1773.8,1773.3,6.21021499]
[1745507353268,0.7699,1773.8,1773.3,6.15383035]
[1745507353439,0.7699,1773.8,1773.3,6.87473994]
[1745507354176,0.7699,1773.8,1773.2,0.56397054]
[1745507354476,0.7586,1773.7,1773.2,6.20346772]
[1745507354772,0.7586,1773.7,1773.2,0.62035879]
[1745507354970,0.7586,1773.7,1773.3,0.51422469]
[1745507355181,0.7586,1773.7,1773.3,1.19161795]
[1745507355552,0.7586,1773.7,1773.3,0.67739326]
[1745507355762,0.7991,1773.6,1773.1,5.298]
[1745507356143,0.7991,1773.6,1773.2,0.5142903]
[1745507356762,0.7991,1773.6,1773.1,5.298]
[1745507356948,0.7653,1773.5,1773.1,5.298]
[1745507357156,0.7653,1773.3,1772.6,6.06849706]
[1745507357363,0.7653,1773.3,1772.7,6.24795507]
[1745507357596,0.7653,1773.1,1772.8,0.51539226]
[1745507358106,0.7653,1773.1,1772.9,0.51539226]
[1745507358815,0.7653,1773.1,1772.7,0.51539226]
[1745507358980,0.7653,1773.1,1772.7,1.13104538]
[1745507359172,0.7653,1773.1,1772.8,0.51539226]
[1745507359691,9.45717605,1772.9,1772.8,0.51539226]
[1745507359895,5.64131184,1772.7,1772.4,0.51539226]
[1745507360209,1.61968974,1772.6,1772.4,0.51539226]
[1745507360786,5.297,1772.8,1772.2,5.64261919]
[1745507360986,5.297,1772.8,1772.1,6.4122081]
[1745507361186,5.297,1772.8,1772.2,1.15661307]
[1745507361386,5.297,1772.8,1772.2,6.79925833]
[1745507361574,10.93781428,1772.8,1772.3,0.51539226]
[1745507361767,10.93781428,1772.8,1772.4,0.51539226]
[1745507362104,5.64081428,1772.8,1772.4,0.51539226]
[1745507362272,7.37904408,1772.8,1772.4,0.51539226]
[1745507362617,7.37904408,1772.8,1772.3,0.51539226]
[1745507363123,1.7382298,1772.8,1772.3,0.51539226]
[1745507363403,1.7382298,1772.8,1772.4,0.51539226]
[1745507363704,0.763,1772.7,1772.4,0.51539226]
[1745507363883,6.061,1772.9,1772.3,6.96055]
[1745507364078,6.061,1772.9,1772.4,5.64197445]
[1745507364079,0.763,1772.9,1772.4,5.64197445]
[1745507364410,0.763,1772.9,1772.5,6.42742464]
[1745507364586,0.763,1772.9,1772.5,6.9428169]
[1745507364913,0.763,1772.9,1772.6,0.51539226]
[1745507365125,0.763,1772.9,1772.6,1.20967395]
[1745507365423,0.763,1772.9,1772.7,0.51539226]
[1745507365915,0.763,1772.9,1772.5,5.64167307]
[1745507366221,0.763,1772.9,1772.6,0.51623916]
[1745507366826,0.763,1772.9,1772.7,0.51623916]
[1745507367296,0.763,1772.9,1772.4,6.15826733]
[1745507367497,0.763,1772.9,1772.5,0.61582673]
[1745507367892,0.763,1772.9,1772.6,0.51623916]
[1745507368511,0.763,1772.9,1772.7,0.51623916]
[1745507368927,0.763,1772.9,1772.5,0.61582673]
[1745507369601,0.763,1772.9,1772.6,0.51599989]
[1745507370125,0.763,1772.9,1772.7,0.51599989]
[1745507370321,1.48362569,1772.9,1772.7,0.51599989]
[1745507370917,1.48362569,1772.9,1772.3,0.51599989]
[1745507371119,7.12417461,1772.9,1772.3,0.51599989]
[1745507371325,0.80298974,1772.8,1772.3,0.51599989]
[1745507371625,0.8129,1772.9,1772.4,0.51599989]
[1745507371833,0.8129,1772.9,1772.5,0.05641674]
[1745507371985,0.8129,1772.9,1772.4,7.52776318]
[1745507372185,0.8129,1772.9,1772.6,0.51599989]
[1745507372840,0.8129,1772.9,1772.7,0.51599989]
[1745507373847,0.8129,1772.9,1772.5,0.51599989]
[1745507374010,0.8129,1772.9,1772.5,1.26877621]
[1745507374216,0.8129,1772.9,1772.6,0.51599989]
[1745507374808,0.8129,1772.9,1772.5,0.51599989]
[1745507375429,0.8129,1772.9,1772.6,0.51599989]
[1745507375836,0.8129,1772.9,1772.4,6.15797585]
[1745507376047,0.8129,1772.9,1772.4,0.51599989]
[1745507376217,0.8129,1772.9,1772.4,7.63804219]
[1745507376413,0.8129,1772.9,1772.5,5.69812745]
[1745507376648,0.8129,1772.9,1772.5,0.51599989]
[1745507377306,0.8129,1772.9,1772.6,0.51599989]
[1745507377506,6.44355391,1772.9,1772.5,0.51599989]
[1745507377732,0.754,1772.8,1772.5,0.51599989]
[1745507378234,0.754,1772.8,1772.6,0.51599989]
[1745507378506,0.754,1772.8,1772.4,0.51599989]
[1745507378710,0.754,1772.8,1772.5,0.51599989]
[1745507379209,0.754,1772.8,1772.2,11.76633651]
[1745507379405,0.754,1772.8,1772.3,1.69291952]
[1745507379640,0.754,1772.8,1772.3,7.33518115]
[1745507379819,0.754,1772.8,1772.4,0.51628587]
[1745507380015,0.754,1772.8,1772.5,0.51628587]
[1745507380771,0.754,1772.8,1772.2,6.1237]
[1745507380957,0.754,1772.8,1772.4,0.51677865]
[1745507381630,0.754,1772.8,1772.5,0.51677865]
[1745507382321,0.754,1772.8,1772.6,0.51677865]
[1745507382966,0.754,1772.8,1772.3,12.06455089]
[1745507383259,0.754,1772.8,1772.4,5.64204425]
[1745507383468,0.754,1772.8,1772.4,1.72353297]
[1745507383962,0.754,1772.8,1772.5,0.51709225]
[1745507384282,1.62888974,1772.6,1772.0,10.0]
[1745507384564,7.27191214,1772.1,1772.0,10.0]
[1745507384724,6.92288974,1772.1,1772.0,10.0]
[1745507385725,12.56591214,1772.1,1772.0,10.0]
[1745507386159,12.88226388,1772.1,1772.0,10.0]
[1745507386358,7.23924148,1772.1,1772.0,10.0]
[1745507386666,12.88226388,1772.1,1772.0,10.0]
[1745507386830,9.09174019,1772.1,1772.0,10.0]
[1745507387527,14.73476259,1772.1,1772.0,10.0]
[1745507388893,9.09174019,1772.1,1772.0,10.0]
[1745507389180,14.73476259,1772.1,1772.0,10.0]
[1745507389541,9.09174019,1772.1,1772.0,10.0]
[1745507390079,14.73476259,1772.1,1772.0,10.0]
[1745507391576,15.1614198,1772.1,1772.0,10.0]
[1745507392179,8.71540766,1772.1,1772.0,10.0]
[1745507392472,6.86290895,1772.1,1772.0,10.0]
[1745507393978,13.30892109,1772.1,1772.0,10.0]
[1745507394553,12.50593135,1772.1,1772.0,10.0]
[1745507394755,13.30892109,1772.1,1772.0,10.0]
[1745507395080,7.66589869,1772.1,1772.0,10.0]
[1745507395295,6.86290895,1772.1,1772.0,10.0]
[1745507395493,6.43625174,1772.1,1772.0,10.0]
[1745507395793,6.1199,1772.1,1772.0,10.0]
[1745507397701,11.7629224,1772.1,1772.0,10.0]
[1745507397866,14.33813132,1772.1,1772.0,10.0]
[1745507398196,14.65448306,1772.1,1772.0,10.0]
[1745507398400,9.01146066,1772.1,1772.0,10.0]
[1745507399097,8.69510892,1772.1,1772.0,10.0]
[1745507399464,14.33813132,1772.1,1772.0,10.0]
[1745507399765,0.794,1771.4,1770.9,0.7599]
[1745507401919,5.292,1771.5,1771.1,5.64599216]
[1745507402096,5.292,1771.5,1771.1,5.64601563]
[1745507402588,5.292,1771.7,1771.1,5.64601563]
[1745507402800,5.292,1771.7,1771.2,0.56460156]
[1745507403600,5.292,1771.7,1771.0,6.40615861]
[1745507403787,5.292,1771.7,1771.1,5.64618324]
[1745507404611,5.292,1771.7,1771.1,5.64620857]
[1745507407514,0.7545,1771.7,1771.2,6.16233922]
[1745507407818,5.292,1771.9,1771.3,0.51662424]
[1745507407819,6.0465,1771.9,1771.3,0.51662424]
[1745507408018,6.0465,1771.9,1771.3,1.13285816]
[1745507408314,6.0465,1771.9,1771.3,0.61623392]
[1745507408477,6.0465,1771.9,1771.2,5.6456375]
[1745507409114,6.0465,1771.9,1771.3,0.51700245]
[1745507409301,6.0465,1771.9,1771.4,0.7944]
[1745507409488,6.0465,1771.9,1771.4,6.43946405]
[1745507409694,6.0465,1771.9,1771.5,0.51700245]
[1745507409875,6.84948974,1771.9,1771.5,0.51700245]
[1745507410083,8.0987772,1771.9,1771.5,0.51700245]
[1745507410313,13.74255293,1771.9,1771.5,0.51700245]
[1745507410618,1.62368974,1771.7,1771.4,0.51700245]
[1745507411001,7.2681768,1771.7,1771.3,0.51700245]
[1745507411384,1.62368974,1771.7,1771.3,0.51700245]
[1745507411581,2.35047385,1771.7,1771.3,0.51700245]
[1745507411782,0.8207,1771.7,1771.1,3.51700245]
[1745507411982,0.8207,1771.7,1771.3,0.8079]
[1745507412391,0.8207,1771.7,1771.3,6.45343224]
[1745507412599,0.8207,1771.7,1771.4,0.51700245]
[1745507413019,0.8207,1771.7,1771.3,6.45335835]
[1745507413319,5.60862192,1771.8,1771.4,0.64533584]
[1745507413482,5.293,1771.8,1771.5,0.51836043]
[1745507413949,5.293,1771.8,1771.6,0.51836043]
[1745507414583,5.293,1771.8,1771.3,6.453458]
[1745507415023,5.293,1771.8,1771.4,0.51946662]
[1745507415200,6.10567772,1771.8,1771.4,0.51946662]
[1745507415598,0.7732,1771.6,1771.5,0.51946662]
[1745507416424,0.7732,1771.6,1771.1,0.05645686]
[1745507416597,6.87987772,1771.8,1771.3,5.64555471]
[1745507416794,6.0672,1771.8,1771.4,0.56455547]
[1745507417296,6.0672,1771.8,1771.5,0.51952294]
[1745507418009,6.0672,1771.8,1771.6,0.51952294]
[1745507418515,6.0672,1771.8,1771.7,0.51952294]
[1745507420001,0.7742,1771.8,1771.7,0.51952294]
[1745507420218,0.7774,1771.9,1771.7,0.51952294]
[1745507420431,1.46473897,1771.9,1771.7,0.51952294]
[1745507420628,1.46473897,1771.9,1771.8,0.51952294]
[1745507421055,0.7774,1771.9,1771.8,0.51952294]
[1745507421205,5.293,1772.1,1771.8,0.51952294]
[1745507421712,5.293,1772.1,1771.9,0.51952294]
[1745507422144,5.293,1772.1,1772.0,0.51952294]
[1745507422443,17.7591,1772.4,1772.0,0.51952294]
[1745507422747,17.7591,1772.4,1772.1,0.51952294]
[1745507423449,17.7591,1772.4,1772.2,0.51952294]
[1745507423622,0.8281,1772.4,1772.2,0.51952294]
[1745507424255,0.8281,1772.4,1772.0,0.7869]
[1745507424826,0.8281,1772.4,1772.1,0.51872222]
[1745507425011,2.00439846,1772.4,1772.1,0.51872222]
[1745507425211,2.00439846,1772.4,1772.2,0.51872222]
[1745507425414,2.8073882,1772.4,1772.2,0.51872222]
[1745507425842,2.8073882,1772.4,1771.8,3.769]
[1745507426038,8.44957139,1772.4,1771.8,3.0]
[1745507426245,0.84495714,1772.3,1771.8,3.0]
[1745507426460,0.84495714,1772.3,1771.9,0.51864481]
[1745507426830,8.44957281,1772.4,1772.0,0.51864481]
[1745507427541,8.44957281,1772.4,1772.1,0.51864481]
[1745507428247,2.8073882,1772.4,1771.8,5.64387548]
[1745507428653,2.8073882,1772.4,1771.7,5.64410333]
[1745507428985,2.8073882,1772.4,1771.9,0.51812078]
[1745507429254,2.8073882,1772.4,1771.8,1.08253111]
[1745507429460,8.44947332,1772.4,1772.0,0.51812078]
[1745507429655,2.8073882,1772.4,1772.0,0.51812078]
[1745507429956,8.44946293,1772.4,1772.0,0.51812078]
[1745507430115,0.84494629,1772.3,1771.8,5.64387363]
[1745507430318,2.8073882,1772.4,1771.7,5.64406914]
[1745507430520,2.8073882,1772.4,1771.8,5.64380256]
[1745507430521,2.00439846,1772.4,1771.8,5.64380256]
[1745507430758,0.8281,1772.4,1771.9,1.3111725]
[1745507431471,0.8281,1772.4,1772.0,0.5175725]
[1745507431669,0.8281,1772.4,1772.0,0.65851103]
[1745507431961,5.293,1772.5,1772.0,0.65851103]
[1745507432117,6.54295266,1772.5,1772.1,0.5175725]
[1745507432319,6.54295266,1772.5,1772.2,0.5175725]
[1745507433054,12.18479741,1772.5,1772.0,0.14093853]
[1745507433361,12.18473943,1772.5,1772.0,0.14093853]
[1745507433521,6.54295266,1772.5,1772.1,0.51720008]
[1745507433721,12.18479871,1772.5,1772.2,0.51720008]
[1745507433922,0.65429527,1772.4,1772.2,0.51720008]
[1745507434165,0.65429527,1772.4,1772.0,0.14093853]
[1745507434317,6.54295266,1772.5,1772.0,0.14093853]
[1745507434656,6.54295266,1772.5,1772.1,0.51720747]
[1745507435169,0.8102,1773.0,1772.2,0.7874]
[1745507435471,6.44982282,1773.2,1772.5,6.42899699]
[1745507435618,0.8102,1773.2,1772.5,0.7874]
[1745507435818,0.8102,1773.2,1772.5,6.42910024]
[1745507436021,1.61318974,1773.2,1772.6,0.51720747]